[Event "Titled Tuesday Blitz August 31 2021"]
[White "Abdurakhmonov, Mukhammadali"]
[Black "Pridorozhni, Aleksei"]
[WhiteFideId "14207346"]
[BlackFideId "4127870"]
[WhiteElo "2266"]
[BlackElo "2565"]
[Result "0-1"]
[Round "11"]
[TimeControl "180+1"]
[Date "2021.08.31"]
[WhiteClock "0:00:02"]
[BlackClock "0:00:40"]

1. e4 {[%clk 0:02:58]}  c5 {[%clk 0:03:00]} 2. Nc3 {[%clk 0:02:58]}  Nc6 {[%clk 0:02:57]} 3. Nge2 {[%clk 0:02:58]}  Nf6 {[%clk 0:02:55]} 4. d4 {[%clk 0:02:57]}  cxd4 {[%clk 0:02:55]} 5. Nxd4 {[%clk 0:02:58]}  e6 {[%clk 0:02:55]} 6. Ndb5 {[%clk 0:02:51]}  Bc5 {[%clk 0:02:55]} 7. Bf4 {[%clk 0:02:47]}  O-O {[%clk 0:02:55]} 8. Bc7 {[%clk 0:02:45]}  Qe7 {[%clk 0:02:55]} 9. Bd6 {[%clk 0:02:46]}  Bxd6 {[%clk 0:02:55]} 10. Qxd6 {[%clk 0:02:46]}  Qd8 {[%clk 0:02:56]} 11. O-O-O {[%clk 0:02:46]}  a6 {[%clk 0:02:54]} 12. Nd4 {[%clk 0:02:46]}  Qb6 {[%clk 0:02:52]} 13. Nxc6 {[%clk 0:02:07]}  bxc6 {[%clk 0:02:52]} 14. f4 {[%clk 0:01:50]}  Qe3+ {[%clk 0:02:26]} 15. Kb1 {[%clk 0:01:50]}  Ne8 {[%clk 0:02:22]} 16. Qd2 {[%clk 0:01:18]}  Qxd2 {[%clk 0:02:21]} 17. Rxd2 {[%clk 0:01:19]}  d5 {[%clk 0:02:22]} 18. Bd3 {[%clk 0:01:19]}  Nf6 {[%clk 0:02:14]} 19. Re1 {[%clk 0:01:17]}  a5 {[%clk 0:02:09]} 20. Na4 {[%clk 0:01:16]}  Nd7 {[%clk 0:02:08]} 21. c4 {[%clk 0:01:14]}  Bb7 {[%clk 0:02:02]} 22. cxd5 {[%clk 0:00:57]}  cxd5 {[%clk 0:02:02]} 23. Bb5 {[%clk 0:00:01]}  Nf6 {[%clk 0:01:50]} 24. Nc5 {[%clk 0:00:02]}  Rab8 {[%clk 0:01:42]} 25. Nxb7 {[%clk 0:00:02]}  Rxb7 {[%clk 0:01:42]} 26. Bc6 {[%clk 0:00:02]}  Rb4 {[%clk 0:01:41]} 27. exd5 {[%clk 0:00:03]}  exd5 {[%clk 0:01:38]} 28. g3 {[%clk 0:00:03]}  Rfb8 {[%clk 0:01:36]} 29. Ree2 {[%clk 0:00:03]}  Ne4 {[%clk 0:01:36]} 30. Rc2 {[%clk 0:00:03]}  Rd4 {[%clk 0:01:30]} 31. a3 {[%clk 0:00:01]}  Nd6 {[%clk 0:01:13]} 32. Rcd2 {[%clk 0:00:02]}  Rxd2 {[%clk 0:01:13]} 33. Rxd2 {[%clk 0:00:02]}  Nc4 {[%clk 0:01:13]} 34. Re2 {[%clk 0:00:03]}  d4 {[%clk 0:01:03]} 35. Be4 {[%clk 0:00:03]}  Nxa3+ {[%clk 0:01:00]} 36. Ka2 {[%clk 0:00:04]}  Nc4 {[%clk 0:01:00]} 37. Bd3 {[%clk 0:00:05]}  Ne3 {[%clk 0:01:00]} 38. Re1 {[%clk 0:00:03]}  Rc8 {[%clk 0:00:58]} 39. Kb3 {[%clk 0:00:04]}  Kf8 {[%clk 0:00:56]} 40. Ra1 {[%clk 0:00:04]}  Rc5 {[%clk 0:00:56]} 41. Ra4 {[%clk 0:00:04]}  Rd5 {[%clk 0:00:53]} 42. Be4 {[%clk 0:00:04]}  Rb5+ {[%clk 0:00:51]} 43. Ka2 {[%clk 0:00:04]}  Nd1 {[%clk 0:00:47]} 44. Rxd4 {[%clk 0:00:04]}  Rxb2+ {[%clk 0:00:47]} 45. Ka3 {[%clk 0:00:05]}  Rb4 {[%clk 0:00:47]} 46. Rxb4 {[%clk 0:00:03]}  axb4+ {[%clk 0:00:48]} 47. Kxb4 {[%clk 0:00:03]}  Ne3 {[%clk 0:00:45]} 48. Kc3 {[%clk 0:00:01]}  Nf1 {[%clk 0:00:43]} 49. Bxh7 {[%clk 0:00:02]}  g6 {[%clk 0:00:43]} 50. f5 {[%clk 0:00:03]}  g5 {[%clk 0:00:43]} 51. f6 {[%clk 0:00:03]}  Nxh2 {[%clk 0:00:43]} 52. Bf5 {[%clk 0:00:03]}  Nf1 {[%clk 0:00:41]} 53. g4 {[%clk 0:00:03]}  Ne3 {[%clk 0:00:41]} 54. Bd7 {[%clk 0:00:02]}  Nd5+ {[%clk 0:00:40]} 55. Kd4 {[%clk 0:00:03]}  Nxf6 {[%clk 0:00:41]} 56. Bf5 {[%clk 0:00:03]}  Ke7 {[%clk 0:00:41]} 57. Ke3 {[%clk 0:00:04]}  Kd6 {[%clk 0:00:40]} 58. Kf3 {[%clk 0:00:04]}  Ke5 {[%clk 0:00:40]} 59. Bc2 {[%clk 0:00:05]}  Nd7 {[%clk 0:00:40]} 60. Bb3 {[%clk 0:00:05]}  f6 {[%clk 0:00:40]} 61. Ba4 {[%clk 0:00:05]}  Nc5 {[%clk 0:00:39]} 62. Bc2 {[%clk 0:00:06]}  Ne6 {[%clk 0:00:39]} 63. Kg3 {[%clk 0:00:06]}  Nd4 {[%clk 0:00:39]} 64. Bd3 {[%clk 0:00:06]}  Nb3 {[%clk 0:00:38]} 65. Bc2 {[%clk 0:00:06]}  Nc5 {[%clk 0:00:38]} 66. Kf3 {[%clk 0:00:05]}  Kd4 {[%clk 0:00:39]} 67. Bb1 {[%clk 0:00:06]}  Nd7 {[%clk 0:00:39]} 68. Bc2 {[%clk 0:00:05]}  Ne5+ {[%clk 0:00:40]} 69. Kg3 {[%clk 0:00:06]}  Ke3 {[%clk 0:00:40]} 70. Bb1 {[%clk 0:00:05]}  Nc4 {[%clk 0:00:41]} 71. Bf5 {[%clk 0:00:05]}  Nd6 {[%clk 0:00:42]} 72. Bg6 {[%clk 0:00:05]}  Ne4+ {[%clk 0:00:42]} 73. Kg2 {[%clk 0:00:04]}  Kf4 {[%clk 0:00:42]} 74. Bf5 {[%clk 0:00:04]}  Nd6 {[%clk 0:00:41]} 75. Bd7 {[%clk 0:00:04]}  Nc4 {[%clk 0:00:41]} 76. Kh3 {[%clk 0:00:04]}  Ne5 {[%clk 0:00:41]} 77. Bc8 {[%clk 0:00:04]}  Kf3 {[%clk 0:00:41]} 78. Bb7+ {[%clk 0:00:04]}  Kf2 {[%clk 0:00:41]} 79. Bc8 {[%clk 0:00:04]}  Ng6 {[%clk 0:00:42]} 80. Bd7 {[%clk 0:00:03]}  Nf4+ {[%clk 0:00:42]} 81. Kh2 {[%clk 0:00:04]}  Kf3 {[%clk 0:00:43]} 82. Bc8 {[%clk 0:00:05]}  Nd3 {[%clk 0:00:40]} 83. Kg1 {[%clk 0:00:02]}  Ne5 {[%clk 0:00:40]} 0-1


[Site "https://www.chess.com"]

[Event "Titled Tuesday Blitz August 31 2021"]
[White "Andreikin, Dmitry"]
[Black "Kamsky, Gata"]
[WhiteFideId "4158814"]
[BlackFideId "2000024"]
[WhiteElo "2782"]
[BlackElo "2644"]
[Result "1-0"]
[Round "11"]
[TimeControl "180+1"]
[Date "2021.08.31"]
[WhiteClock "0:00:08"]
[BlackClock "0:00:02"]

1. Nf3 {[%clk 0:03:00]}  Nf6 {[%clk 0:02:56]} 2. c4 {[%clk 0:03:00]}  g6 {[%clk 0:02:56]} 3. Nc3 {[%clk 0:02:59]}  Bg7 {[%clk 0:02:56]} 4. e4 {[%clk 0:02:58]}  d6 {[%clk 0:02:55]} 5. d4 {[%clk 0:02:59]}  O-O {[%clk 0:02:55]} 6. Be2 {[%clk 0:02:57]}  e5 {[%clk 0:02:55]} 7. O-O {[%clk 0:02:57]}  Na6 {[%clk 0:02:54]} 8. Be3 {[%clk 0:02:49]}  Ng4 {[%clk 0:02:47]} 9. Bg5 {[%clk 0:02:49]}  Qe8 {[%clk 0:02:47]} 10. h3 {[%clk 0:02:46]}  h6 {[%clk 0:02:46]} 11. Bc1 {[%clk 0:02:34]}  Nf6 {[%clk 0:02:45]} 12. Re1 {[%clk 0:02:34]}  c6 {[%clk 0:02:33]} 13. Bf1 {[%clk 0:02:28]}  Nh5 {[%clk 0:02:25]} 14. Be3 {[%clk 0:02:24]}  Qe7 {[%clk 0:02:21]} 15. c5 {[%clk 0:02:19]}  exd4 {[%clk 0:02:10]} 16. cxd6 {[%clk 0:02:17]}  Qxd6 {[%clk 0:02:10]} 17. Bxa6 {[%clk 0:02:17]}  bxa6 {[%clk 0:02:00]} 18. Bxd4 {[%clk 0:02:16]}  Bxd4 {[%clk 0:01:26]} 19. Qxd4 {[%clk 0:02:16]}  Qxd4 {[%clk 0:01:25]} 20. Nxd4 {[%clk 0:02:17]}  c5 {[%clk 0:01:25]} 21. Nb3 {[%clk 0:02:00]}  Rb8 {[%clk 0:01:23]} 22. Nd5 {[%clk 0:01:50]}  c4 {[%clk 0:01:08]} 23. Na5 {[%clk 0:01:51]}  Rxb2 {[%clk 0:01:04]} 24. Nxc4 {[%clk 0:01:50]}  Rc2 {[%clk 0:01:03]} 25. Nce3 {[%clk 0:01:45]}  Rb2 {[%clk 0:01:01]} 26. Reb1 {[%clk 0:01:42]}  Rd2 {[%clk 0:00:53]} 27. g4 {[%clk 0:01:34]}  Ng7 {[%clk 0:00:52]} 28. Nf6+ {[%clk 0:01:29]}  Kh8 {[%clk 0:00:51]} 29. Rb8 {[%clk 0:01:29]}  Rdd8 {[%clk 0:00:45]} 30. Rc1 {[%clk 0:01:27]}  Ne6 {[%clk 0:00:41]} 31. Ned5 {[%clk 0:01:21]}  Kg7 {[%clk 0:00:40]} 32. Kh2 {[%clk 0:01:18]}  a5 {[%clk 0:00:29]} 33. Kg3 {[%clk 0:01:04]}  Nd4 {[%clk 0:00:28]} 34. Rc7 {[%clk 0:01:00]}  Be6 {[%clk 0:00:25]} 35. Rxd8 {[%clk 0:00:57]}  Rxd8 {[%clk 0:00:24]} 36. Rxa7 {[%clk 0:00:58]}  Nc6 {[%clk 0:00:24]} 37. Ra6 {[%clk 0:00:53]}  Rc8 {[%clk 0:00:23]} 38. f4 {[%clk 0:00:45]}  Nb4 {[%clk 0:00:16]} 39. Rxa5 {[%clk 0:00:30]}  Nxd5 {[%clk 0:00:16]} 40. Nxd5 {[%clk 0:00:28]}  Rc2 {[%clk 0:00:15]} 41. a4 {[%clk 0:00:13]}  Ra2 {[%clk 0:00:14]} 42. f5 {[%clk 0:00:11]}  Ra3+ {[%clk 0:00:14]} 43. Kf4 {[%clk 0:00:11]}  Bd7 {[%clk 0:00:11]} 44. Ra7 {[%clk 0:00:08]}  Bc6 {[%clk 0:00:07]} 45. f6+ {[%clk 0:00:07]}  Kh8 {[%clk 0:00:05]} 46. Rxf7 {[%clk 0:00:07]}  Bxd5 {[%clk 0:00:05]} 47. exd5 {[%clk 0:00:08]}  Rxa4+ {[%clk 0:00:05]} 48. Ke5 {[%clk 0:00:09]}  Ra3 {[%clk 0:00:04]} 49. Rg7 {[%clk 0:00:08]}  g5 {[%clk 0:00:04]} 50. d6 {[%clk 0:00:08]}  Re3+ {[%clk 0:00:02]} 51. Kf5 {[%clk 0:00:08]} 1-0


[Site "https://www.chess.com"]

[Event "Titled Tuesday Blitz August 31 2021"]
[White "Barrionuevo, Pablo"]
[Black "Siniauski, Artsiom"]
[WhiteFideId "110566"]
[BlackFideId "13512269"]
[WhiteElo "2250"]
[BlackElo "2210"]
[Result "0-1"]
[Round "11"]
[TimeControl "180+1"]
[Date "2021.08.31"]
[WhiteClock "0:00:10"]
[BlackClock "0:00:37"]

1. d4 {[%clk 0:03:00]}  Nf6 {[%clk 0:02:59]} 2. c4 {[%clk 0:03:01]}  e6 {[%clk 0:02:59]} 3. Nf3 {[%clk 0:03:01]}  b6 {[%clk 0:03:00]} 4. a3 {[%clk 0:03:01]}  Bb7 {[%clk 0:02:59]} 5. Nc3 {[%clk 0:03:01]}  d5 {[%clk 0:02:59]} 6. cxd5 {[%clk 0:03:02]}  Nxd5 {[%clk 0:02:59]} 7. e4 {[%clk 0:03:02]}  Nxc3 {[%clk 0:02:58]} 8. bxc3 {[%clk 0:03:03]}  Bxe4 {[%clk 0:02:58]} 9. Ne5 {[%clk 0:03:04]}  Qh4 {[%clk 0:02:53]} 10. Bb5+ {[%clk 0:02:32]}  c6 {[%clk 0:02:51]} 11. g3 {[%clk 0:02:12]}  Qd8 {[%clk 0:02:44]} 12. f3 {[%clk 0:02:09]}  cxb5 {[%clk 0:02:35]} 13. fxe4 {[%clk 0:02:09]}  Bd6 {[%clk 0:02:36]} 14. Nf3 {[%clk 0:02:03]}  O-O {[%clk 0:02:35]} 15. O-O {[%clk 0:02:03]}  Nc6 {[%clk 0:02:34]} 16. Qd3 {[%clk 0:01:58]}  a6 {[%clk 0:02:32]} 17. Be3 {[%clk 0:01:48]}  Na5 {[%clk 0:02:30]} 18. e5 {[%clk 0:01:48]}  Be7 {[%clk 0:02:28]} 19. h4 {[%clk 0:01:48]}  Rc8 {[%clk 0:02:26]} 20. Ng5 {[%clk 0:01:47]}  Bxg5 {[%clk 0:02:24]} 21. Bxg5 {[%clk 0:01:46]}  Qc7 {[%clk 0:02:24]} 22. Rf3 {[%clk 0:01:45]}  Qc4 {[%clk 0:02:19]} 23. Qe4 {[%clk 0:01:45]}  Qd5 {[%clk 0:02:16]} 24. Qg4 {[%clk 0:01:44]}  h5 {[%clk 0:01:45]} 25. Qxh5 {[%clk 0:01:39]}  Rxc3 {[%clk 0:01:44]} 26. Rxc3 {[%clk 0:01:23]}  Qxd4+ {[%clk 0:01:43]} 27. Re3 {[%clk 0:01:14]}  Qxa1+ {[%clk 0:01:43]} 28. Kg2 {[%clk 0:01:15]}  Nc4 {[%clk 0:01:42]} 29. Re2 {[%clk 0:01:13]}  Nxe5 {[%clk 0:01:30]} 30. Be7 {[%clk 0:00:53]}  Re8 {[%clk 0:01:21]} 31. Qg5 {[%clk 0:00:45]}  Ng6 {[%clk 0:01:14]} 32. Bd6 {[%clk 0:00:42]}  Qd4 {[%clk 0:01:09]} 33. Rd2 {[%clk 0:00:36]}  Qe4+ {[%clk 0:01:10]} 34. Kh2 {[%clk 0:00:36]}  f6 {[%clk 0:01:05]} 35. Qh5 {[%clk 0:00:33]}  Rd8 {[%clk 0:00:54]} 36. Re2 {[%clk 0:00:32]}  Qf5 {[%clk 0:00:50]} 37. Qxf5 {[%clk 0:00:30]}  exf5 {[%clk 0:00:51]} 38. Bc7 {[%clk 0:00:31]}  Rd3 {[%clk 0:00:51]} 39. Bxb6 {[%clk 0:00:25]}  Rxa3 {[%clk 0:00:50]} 40. Re8+ {[%clk 0:00:24]}  Kh7 {[%clk 0:00:50]} 41. Bc5 {[%clk 0:00:20]}  Ra2+ {[%clk 0:00:48]} 42. Kh3 {[%clk 0:00:20]}  Ne5 {[%clk 0:00:49]} 43. h5 {[%clk 0:00:19]}  Ng4 {[%clk 0:00:48]} 44. Bg1 {[%clk 0:00:17]}  b4 {[%clk 0:00:47]} 45. Rb8 {[%clk 0:00:12]}  a5 {[%clk 0:00:47]} 46. h6 {[%clk 0:00:10]}  Kxh6 {[%clk 0:00:45]} 47. Rh8+ {[%clk 0:00:08]}  Kg6 {[%clk 0:00:45]} 48. Rb8 {[%clk 0:00:09]}  Ra3 {[%clk 0:00:43]} 49. Kh4 {[%clk 0:00:09]}  b3 {[%clk 0:00:40]} 50. Rb7 {[%clk 0:00:09]}  a4 {[%clk 0:00:38]} 51. Bc5 {[%clk 0:00:09]}  Ra2 {[%clk 0:00:38]} 52. Kh3 {[%clk 0:00:10]}  Rh2# {[%clk 0:00:37]} 0-1


[Site "https://www.chess.com"]

[Event "Titled Tuesday Blitz August 31 2021"]
[White "Boyer, Mahel"]
[Black "Tokman, Ariel"]
[WhiteFideId "45102422"]
[BlackFideId "117420"]
[WhiteElo "2328"]
[BlackElo "2345"]
[Result "1-0"]
[Round "11"]
[TimeControl "180+1"]
[Date "2021.08.31"]
[WhiteClock "0:00:17"]
[BlackClock "0:00:03"]

1. e4 {[%clk 0:03:00]}  d6 {[%clk 0:02:58]} 2. g3 {[%clk 0:02:57]}  Nf6 {[%clk 0:02:58]} 3. Bg2 {[%clk 0:02:56]}  e5 {[%clk 0:02:58]} 4. Ne2 {[%clk 0:02:56]}  Be7 {[%clk 0:02:59]} 5. O-O {[%clk 0:02:57]}  O-O {[%clk 0:02:59]} 6. d4 {[%clk 0:02:58]}  Nbd7 {[%clk 0:03:00]} 7. h3 {[%clk 0:02:56]}  c6 {[%clk 0:02:58]} 8. c4 {[%clk 0:02:55]}  exd4 {[%clk 0:02:57]} 9. Nxd4 {[%clk 0:02:51]}  Nc5 {[%clk 0:02:58]} 10. Nc3 {[%clk 0:02:44]}  a5 {[%clk 0:02:58]} 11. Be3 {[%clk 0:02:40]}  Re8 {[%clk 0:02:59]} 12. Qc2 {[%clk 0:02:40]}  Qc7 {[%clk 0:02:58]} 13. Rad1 {[%clk 0:02:39]}  Bd7 {[%clk 0:02:38]} 14. Rfe1 {[%clk 0:02:31]}  Rad8 {[%clk 0:02:38]} 15. Bf4 {[%clk 0:02:21]}  Bc8 {[%clk 0:02:36]} 16. e5 {[%clk 0:02:15]}  dxe5 {[%clk 0:02:34]} 17. Bxe5 {[%clk 0:02:16]}  Qb6 {[%clk 0:02:31]} 18. Nf5 {[%clk 0:02:11]}  Bxf5 {[%clk 0:02:27]} 19. Qxf5 {[%clk 0:02:12]}  Rxd1 {[%clk 0:02:05]} 20. Rxd1 {[%clk 0:02:04]}  Ne6 {[%clk 0:01:56]} 21. Ne4 {[%clk 0:01:45]}  Nxe4 {[%clk 0:01:45]} 22. Bxe4 {[%clk 0:01:46]}  g6 {[%clk 0:01:44]} 23. Qg4 {[%clk 0:01:44]}  Bc5 {[%clk 0:01:37]} 24. Rd2 {[%clk 0:01:37]}  Bd4 {[%clk 0:01:32]} 25. Bd6 {[%clk 0:01:15]}  Qd8 {[%clk 0:01:17]} 26. Be5 {[%clk 0:01:09]}  Qb6 {[%clk 0:01:10]} 27. Bd6 {[%clk 0:01:08]}  c5 {[%clk 0:00:52]} 28. Bf4 {[%clk 0:00:59]}  Nxf4 {[%clk 0:00:28]} 29. Qxf4 {[%clk 0:01:00]}  Qe6 {[%clk 0:00:10]} 30. Bxb7 {[%clk 0:00:53]}  Qe1+ {[%clk 0:00:08]} 31. Kg2 {[%clk 0:00:53]}  Kg7 {[%clk 0:00:07]} 32. Bd5 {[%clk 0:00:53]}  Re7 {[%clk 0:00:07]} 33. Rd3 {[%clk 0:00:35]}  Qe5 {[%clk 0:00:06]} 34. Qxe5+ {[%clk 0:00:32]}  Rxe5 {[%clk 0:00:07]} 35. Rb3 {[%clk 0:00:32]}  Re2 {[%clk 0:00:07]} 36. Rf3 {[%clk 0:00:32]}  f5 {[%clk 0:00:06]} 37. g4 {[%clk 0:00:32]}  fxg4 {[%clk 0:00:02]} 38. hxg4 {[%clk 0:00:33]}  Rxb2 {[%clk 0:00:02]} 39. g5 {[%clk 0:00:34]}  h5 {[%clk 0:00:01]} 40. Rf7+ {[%clk 0:00:33]}  Kh8 {[%clk 0:00:02]} 41. Rf8+ {[%clk 0:00:32]}  Kg7 {[%clk 0:00:02]} 42. Rf7+ {[%clk 0:00:33]}  Kh8 {[%clk 0:00:02]} 43. Kg3 {[%clk 0:00:33]}  Rxa2 {[%clk 0:00:02]} 44. Rf8+ {[%clk 0:00:19]}  Kg7 {[%clk 0:00:02]} 45. Re8 {[%clk 0:00:17]}  Ra1 {[%clk 0:00:02]} 46. f4 {[%clk 0:00:17]}  h4+ {[%clk 0:00:02]} 47. Kxh4 {[%clk 0:00:16]}  Rg1 {[%clk 0:00:02]} 48. Re7+ {[%clk 0:00:16]}  Kf8 {[%clk 0:00:02]} 49. Re6 {[%clk 0:00:16]}  Kg7 {[%clk 0:00:02]} 50. Ra6 {[%clk 0:00:16]}  Bf2+ {[%clk 0:00:02]} 51. Kh3 {[%clk 0:00:16]}  Rg3+ {[%clk 0:00:02]} 52. Kh2 {[%clk 0:00:17]}  Rc3 {[%clk 0:00:02]} 53. Kg2 {[%clk 0:00:16]}  Bg3 {[%clk 0:00:02]} 54. Ra7+ {[%clk 0:00:13]}  Kf8 {[%clk 0:00:02]} 55. Rf7+ {[%clk 0:00:14]}  Ke8 {[%clk 0:00:03]} 56. Rf6 {[%clk 0:00:15]}  Be1 {[%clk 0:00:03]} 57. Rxg6 {[%clk 0:00:15]}  a4 {[%clk 0:00:04]} 58. Re6+ {[%clk 0:00:15]}  Kd7 {[%clk 0:00:03]} 59. Rxe1 {[%clk 0:00:16]}  a3 {[%clk 0:00:03]} 60. g6 {[%clk 0:00:17]} 1-0


[Site "https://www.chess.com"]

[Event "Titled Tuesday Blitz August 31 2021"]
[White "Brunner, Nicolas"]
[Black "Hryshchenko, Kamila"]
[WhiteFideId "620246"]
[BlackFideId "14147491"]
[WhiteElo "2372"]
[BlackElo "1936"]
[Result "0-1"]
[Round "11"]
[TimeControl "180+1"]
[Date "2021.08.31"]
[WhiteClock "0:00:04"]
[BlackClock "0:00:05"]

1. d4 {[%clk 0:03:00]}  g6 {[%clk 0:02:59]} 2. e4 {[%clk 0:02:59]}  Bg7 {[%clk 0:03:00]} 3. Nc3 {[%clk 0:02:59]}  d6 {[%clk 0:03:01]} 4. Be3 {[%clk 0:02:59]}  Nf6 {[%clk 0:03:01]} 5. Qd2 {[%clk 0:02:58]}  c6 {[%clk 0:03:01]} 6. Bh6 {[%clk 0:02:58]}  Bxh6 {[%clk 0:03:00]} 7. Qxh6 {[%clk 0:02:58]}  Qa5 {[%clk 0:03:00]} 8. Bd3 {[%clk 0:02:57]}  b5 {[%clk 0:03:00]} 9. Qd2 {[%clk 0:02:50]}  Nbd7 {[%clk 0:02:57]} 10. Nge2 {[%clk 0:02:49]}  e5 {[%clk 0:02:54]} 11. dxe5 {[%clk 0:02:36]}  dxe5 {[%clk 0:02:55]} 12. O-O {[%clk 0:02:34]}  O-O {[%clk 0:02:51]} 13. a4 {[%clk 0:02:32]}  b4 {[%clk 0:02:48]} 14. Nd1 {[%clk 0:02:32]}  Nc5 {[%clk 0:02:36]} 15. f3 {[%clk 0:02:32]}  Be6 {[%clk 0:02:30]} 16. Qg5 {[%clk 0:02:24]}  Ncd7 {[%clk 0:02:22]} 17. Ne3 {[%clk 0:02:23]}  Qc5 {[%clk 0:02:16]} 18. Kh1 {[%clk 0:02:19]}  Kg7 {[%clk 0:02:09]} 19. Nf5+ {[%clk 0:02:16]}  Bxf5 {[%clk 0:01:57]} 20. exf5 {[%clk 0:02:16]}  Nb6 {[%clk 0:01:45]} 21. Ng3 {[%clk 0:02:09]}  h6 {[%clk 0:01:20]} 22. Qh4 {[%clk 0:02:02]}  g5 {[%clk 0:01:14]} 23. Nh5+ {[%clk 0:02:01]}  Nxh5 {[%clk 0:01:13]} 24. Qxh5 {[%clk 0:02:02]}  Nd5 {[%clk 0:01:08]} 25. g3 {[%clk 0:01:51]}  Nf6 {[%clk 0:01:04]} 26. Qh3 {[%clk 0:01:50]}  Rad8 {[%clk 0:01:03]} 27. Rae1 {[%clk 0:01:47]}  b3 {[%clk 0:01:00]} 28. Qg2 {[%clk 0:01:39]}  Rd4 {[%clk 0:00:53]} 29. f4 {[%clk 0:01:27]}  e4 {[%clk 0:00:44]} 30. fxg5 {[%clk 0:01:26]}  hxg5 {[%clk 0:00:43]} 31. Bxe4 {[%clk 0:01:23]}  Rh8 {[%clk 0:00:42]} 32. c3 {[%clk 0:01:15]}  Rxa4 {[%clk 0:00:31]} 33. Bxc6 {[%clk 0:01:15]}  Ra2 {[%clk 0:00:29]} 34. Be4 {[%clk 0:00:53]}  Ra4 {[%clk 0:00:28]} 35. Bb1 {[%clk 0:00:45]}  Ra6 {[%clk 0:00:25]} 36. Qd2 {[%clk 0:00:34]}  Rh5 {[%clk 0:00:19]} 37. h4 {[%clk 0:00:13]}  Rd6 {[%clk 0:00:15]} 38. Qg2 {[%clk 0:00:11]}  gxh4 {[%clk 0:00:13]} 39. g4 {[%clk 0:00:11]}  Rg5 {[%clk 0:00:12]} 40. Rf4 {[%clk 0:00:10]}  Qb6 {[%clk 0:00:09]} 41. Rb4 {[%clk 0:00:09]}  Qd8 {[%clk 0:00:09]} 42. Qh3 {[%clk 0:00:06]}  Rd2 {[%clk 0:00:08]} 43. Qxh4 {[%clk 0:00:05]}  Nxg4 {[%clk 0:00:08]} 44. f6+ {[%clk 0:00:04]}  Qxf6 {[%clk 0:00:06]} 45. Rxg4 {[%clk 0:00:04]}  Qf3+ {[%clk 0:00:05]} 0-1


[Site "https://www.chess.com"]

[Event "Titled Tuesday Blitz August 31 2021"]
[White "Dang, Hoang Son"]
[Black "Przybylski, Wojciech"]
[WhiteFideId "12402435"]
[BlackFideId "1117599"]
[WhiteElo "2248"]
[BlackElo "2250"]
[Result "1-0"]
[Round "11"]
[TimeControl "180+1"]
[Date "2021.08.31"]
[WhiteClock "0:00:35"]
[BlackClock "0:00:01"]

1. d4 {[%clk 0:03:00]}  Nf6 {[%clk 0:02:56]} 2. c4 {[%clk 0:03:01]}  e6 {[%clk 0:02:57]} 3. Nf3 {[%clk 0:03:02]}  b6 {[%clk 0:02:51]} 4. g3 {[%clk 0:03:03]}  Ba6 {[%clk 0:02:50]} 5. Qa4 {[%clk 0:03:03]}  Bb7 {[%clk 0:02:50]} 6. Bg2 {[%clk 0:03:02]}  Be7 {[%clk 0:02:50]} 7. O-O {[%clk 0:03:02]}  O-O {[%clk 0:02:50]} 8. Rd1 {[%clk 0:02:58]}  d6 {[%clk 0:02:44]} 9. Nc3 {[%clk 0:02:54]}  Nbd7 {[%clk 0:02:44]} 10. Bf4 {[%clk 0:02:46]}  h6 {[%clk 0:02:42]} 11. Ne1 {[%clk 0:02:35]}  Qc8 {[%clk 0:02:32]} 12. e4 {[%clk 0:02:31]}  e5 {[%clk 0:02:17]} 13. Be3 {[%clk 0:02:31]}  Ng4 {[%clk 0:02:01]} 14. Nd5 {[%clk 0:02:28]}  Bd8 {[%clk 0:01:40]} 15. Bh3 {[%clk 0:02:23]}  h5 {[%clk 0:01:40]} 16. f3 {[%clk 0:01:59]}  c6 {[%clk 0:01:38]} 17. fxg4 {[%clk 0:01:56]}  b5 {[%clk 0:01:32]} 18. cxb5 {[%clk 0:01:49]}  cxd5 {[%clk 0:01:23]} 19. Rac1 {[%clk 0:01:48]}  Nb6 {[%clk 0:01:11]} 20. Qb3 {[%clk 0:01:41]}  Qd7 {[%clk 0:01:07]} 21. dxe5 {[%clk 0:01:40]}  dxe5 {[%clk 0:00:54]} 22. exd5 {[%clk 0:01:26]}  Bxd5 {[%clk 0:00:51]} 23. Qb4 {[%clk 0:01:16]}  Qe6 {[%clk 0:00:35]} 24. Nd3 {[%clk 0:01:06]}  Be7 {[%clk 0:00:31]} 25. Bc5 {[%clk 0:01:05]}  Bg5 {[%clk 0:00:27]} 26. Rc2 {[%clk 0:00:59]}  Rfd8 {[%clk 0:00:25]} 27. Re1 {[%clk 0:00:57]}  Qf6 {[%clk 0:00:23]} 28. Rf2 {[%clk 0:00:53]}  Qh6 {[%clk 0:00:20]} 29. Nxe5 {[%clk 0:00:52]}  Be6 {[%clk 0:00:14]} 30. Bg2 {[%clk 0:00:49]}  Rac8 {[%clk 0:00:13]} 31. Nc6 {[%clk 0:00:48]}  Re8 {[%clk 0:00:08]} 32. h4 {[%clk 0:00:48]}  Bf6 {[%clk 0:00:07]} 33. g5 {[%clk 0:00:48]}  Bxg5 {[%clk 0:00:07]} 34. hxg5 {[%clk 0:00:48]}  Qxg5 {[%clk 0:00:07]} 35. Ne7+ {[%clk 0:00:48]}  Rxe7 {[%clk 0:00:06]} 36. Bxe7 {[%clk 0:00:48]}  Qxg3 {[%clk 0:00:06]} 37. Bh4 {[%clk 0:00:49]}  Qg6 {[%clk 0:00:05]} 38. b3 {[%clk 0:00:43]}  Nd5 {[%clk 0:00:04]} 39. Qd4 {[%clk 0:00:42]}  Kh8 {[%clk 0:00:01]} 40. Kh2 {[%clk 0:00:40]}  Nb6 {[%clk 0:00:01]} 41. Rg1 {[%clk 0:00:39]}  Qh6 {[%clk 0:00:01]} 42. Bc6 {[%clk 0:00:35]} 1-0


[Site "https://www.chess.com"]

[Event "Titled Tuesday Blitz August 31 2021"]
[White "Espinosa, Pedro"]
[Black "Viani Antonio Dcunha"]
[WhiteFideId "30921066"]
[BlackFideId "5027330"]
[WhiteElo "1673"]
[BlackElo "2366"]
[Result "0-1"]
[Round "11"]
[TimeControl "180+1"]
[Date "2021.08.31"]
[WhiteClock "0:01:41"]
[BlackClock "0:01:33"]

1. e4 {[%clk 0:02:59]}  e5 {[%clk 0:02:59]} 2. Nf3 {[%clk 0:02:58]}  Nc6 {[%clk 0:02:58]} 3. Bc4 {[%clk 0:02:58]}  Nf6 {[%clk 0:02:57]} 4. Ng5 {[%clk 0:02:57]}  d5 {[%clk 0:02:56]} 5. exd5 {[%clk 0:02:58]}  Na5 {[%clk 0:02:56]} 6. Bb5+ {[%clk 0:02:58]}  c6 {[%clk 0:02:57]} 7. dxc6 {[%clk 0:02:59]}  bxc6 {[%clk 0:02:56]} 8. Bd3 {[%clk 0:03:00]}  Nd5 {[%clk 0:02:43]} 9. Nf3 {[%clk 0:02:57]}  Bd6 {[%clk 0:02:37]} 10. O-O {[%clk 0:02:56]}  Nf4 {[%clk 0:02:32]} 11. Be2 {[%clk 0:02:54]}  e4 {[%clk 0:02:28]} 12. Nd4 {[%clk 0:02:41]}  Nxg2 {[%clk 0:01:51]} 13. Kxg2 {[%clk 0:02:34]}  Qg5+ {[%clk 0:01:49]} 14. Kh1 {[%clk 0:02:22]}  Qf4 {[%clk 0:01:47]} 15. Nf3 {[%clk 0:01:42]}  exf3 {[%clk 0:01:34]} 16. Bxf3 {[%clk 0:01:41]}  Qxh2# {[%clk 0:01:33]} 0-1


[Site "https://www.chess.com"]